bitfinex/quotes_BTCUSD_20260311
["timestamp","ask_amount","ask_price","bid_price","bid_amount"]
[1773249294527,0.07051589,70906.0,70883.0,0.07053877]
[1773249294734,0.07582094,70905.0,70883.0,0.07053877]
[1773249298983,0.07582094,70905.0,70882.0,0.07065049]
[1773249298984,0.07438094,70903.0,70882.0,0.00011172]
[1773249299739,0.00144,70902.0,70882.0,0.00011172]
[1773249300055,0.00144,70902.0,70882.0,0.00031172]
[1773249300222,0.00144,70902.0,70890.0,0.12537821]
[1773249300369,0.00144,70902.0,70886.0,0.00144]
[1773249300572,0.07438094,70901.0,70886.0,0.00144]
[1773249300779,0.07438094,70901.0,70882.0,0.00031172]
[1773249301229,0.07438094,70901.0,70883.0,0.07053877]
[1773249301565,0.00144,70900.0,70883.0,0.07053877]
[1773249301771,0.00144,70900.0,70886.0,0.001]
[1773249302263,0.07438094,70901.0,70886.0,0.001]
[1773249302409,0.00144,70899.0,70883.0,0.07053877]
[1773249302828,0.00144,70898.0,70883.0,0.07053877]
[1773249303318,0.14006322,70904.0,70883.0,0.07053877]
[1773249303518,0.01111072,70917.0,70883.0,0.07053877]
[1773249303519,0.00144,70912.0,70888.0,0.12537821]
[1773249303726,0.07460095,70916.0,70888.0,0.12537821]
[1773249303727,0.00144,70911.0,70889.0,0.00144]
[1773249304164,0.07526095,70911.0,70889.0,0.00144]
[1773249304990,0.07526095,70911.0,70889.0,0.00244]
[1773249305352,0.07526095,70911.0,70890.0,0.0705318]
[1773249305765,0.0004524,70914.0,70890.0,0.19591001]
[1773249306143,0.00144,70910.0,70890.0,0.19591001]
[1773249306343,0.00144,70910.0,70890.0,0.0705318]
[1773249307122,0.00144,70910.0,70890.0,0.19591001]
[1773249307320,0.07382095,70909.0,70890.0,0.0705318]
[1773249307747,0.07382095,70909.0,70890.0,0.0715318]
[1773249308102,0.07382095,70909.0,70890.0,0.0705318]
[1773249308303,0.07382095,70907.0,70890.0,0.0705318]
[1773249308939,0.07382095,70907.0,70890.0,0.0715318]
[1773249309104,0.07382095,70907.0,70890.0,0.001]
[1773249309305,0.07051386,70910.0,70891.0,0.07053081]
[1773249309541,0.00144,70906.0,70891.0,0.07053081]
[1773249309706,0.07382095,70909.0,70891.0,0.07053081]
[1773249309933,0.00144,70908.0,70891.0,0.07053081]
[1773249310556,0.07526095,70908.0,70891.0,0.07053081]
[1773249310938,0.07427335,70914.0,70891.0,0.07053081]
[1773249311264,0.07050992,70912.0,70893.0,0.07052882]
[1773249311410,0.07382095,70911.0,70893.0,0.07052882]
[1773249311607,0.00144,70910.0,70893.0,0.07052882]
[1773249312033,0.07382095,70909.0,70893.0,0.07052882]
[1773249313333,0.07382095,70907.0,70882.0,0.07085049]
[1773249313533,0.07382095,70907.0,70883.0,0.07053871]
[1773249313960,0.07382095,70907.0,70875.0,0.07054673]
[1773249314159,0.07382095,70904.0,70869.0,0.07055083]
[1773249314359,0.07382095,70903.0,70869.0,0.07055261]
[1773249314596,0.07382095,70901.0,70872.0,0.07074959]
[1773249314748,0.07382095,70900.0,70872.0,0.07074959]
[1773249314954,0.07382095,70900.0,70874.0,0.07074747]
[1773249315392,0.07382095,70896.0,70874.0,0.07074747]
[1773249315592,0.07382095,70896.0,70875.0,0.0002]
[1773249315956,0.07382095,70894.0,70875.0,0.0002]
[1773249316169,0.14086548,70897.0,70880.0,0.12537821]
[1773249316373,0.07151813,70904.0,70880.0,0.12537821]
[1773249316374,0.14086548,70901.0,70880.0,0.12537821]
[1773249316620,0.00144,70904.0,70890.0,0.12537821]
[1773249316827,0.00144,70904.0,70881.0,0.00144]
[1773249317129,0.00144,70904.0,70882.0,0.00144]
[1773249317527,0.00144,70904.0,70883.0,0.07053877]
[1773249317753,0.14086548,70906.0,70883.0,0.07053877]
[1773249317879,0.00144,70904.0,70890.0,0.001]
[1773249318081,0.01168246,70907.0,70890.0,0.00244]
[1773249318281,0.00144,70906.0,70890.0,0.00144]
[1773249318524,0.001,70900.0,70890.0,0.00144]
[1773249318675,0.00144,70905.0,70890.0,0.00144]
[1773249319548,0.00144,70905.0,70891.0,0.07053081]
[1773249321119,0.01168246,70907.0,70892.0,0.05713068]
[1773249321345,0.00144,70906.0,70892.0,0.05713068]
[1773249321557,0.00144,70906.0,70893.0,0.07052882]
[1773249323761,0.01168246,70907.0,70893.0,0.07052882]
[1773249323762,0.00144,70905.0,70893.0,0.07052882]
[1773249324165,0.00144,70906.0,70894.0,0.05713068]
[1773249324543,0.00144,70906.0,70893.0,0.07052882]
[1773249325160,0.00144,70906.0,70893.0,0.07152882]
[1773249326579,0.00144,70906.0,70893.0,0.07052882]
[1773249327603,0.05240786,70905.0,70893.0,0.07052882]
[1773249327748,0.05240786,70905.0,70892.0,0.07052882]
[1773249327953,0.05240786,70904.0,70886.0,0.07053578]
[1773249328694,0.05240786,70904.0,70887.0,0.05713068]
[1773249329686,0.07051887,70903.0,70888.0,0.07053379]
[1773249329928,0.14086548,70904.0,70889.0,0.05713068]
[1773249330174,0.14108549,70906.0,70891.0,0.05713068]
[1773249330363,0.14252549,70906.0,70893.0,0.05713068]
[1773249330781,0.00166001,70906.0,70893.0,0.05713068]
[1773249332087,0.00022001,70906.0,70895.0,0.05713068]
[1773249333228,0.00022001,70906.0,70895.0,0.05813068]
[1773249334244,0.00022001,70906.0,70896.0,0.07052584]
[1773249335411,0.00022001,70906.0,70897.0,0.05713068]
[1773249336150,0.00022001,70906.0,70898.0,0.07052385]
[1773249337054,0.14086142,70914.0,70900.0,0.05713068]
[1773249337276,0.00022001,70921.0,70905.0,0.05713068]
[1773249337512,0.00166001,70924.0,70905.0,0.05724234]
[1773249337513,1e-08,70924.0,70905.0,0.05724234]
[1773249337751,1e-08,70924.0,70906.0,0.00144]
[1773249337920,1e-08,70924.0,70907.0,0.05713068]
[1773249338431,1e-08,70924.0,70909.0,0.05713068]
[1773249339652,1e-08,70924.0,70909.0,0.05813068]
[1773249340014,1e-08,70924.0,70909.0,0.05713068]
[1773249340431,1e-08,70924.0,70910.0,0.07051191]
[1773249340654,1e-08,70924.0,70911.0,0.04837721]
[1773249340923,1e-08,70924.0,70913.0,0.04837721]
[1773249341565,0.01138099,70928.0,70913.0,0.04837721]
[1773249341881,0.01110469,70928.0,70913.0,0.04837721]
[1773249342074,0.01092617,70928.0,70913.0,0.04837721]
[1773249342346,0.01078518,70928.0,70913.0,0.04837721]
[1773249342548,0.04964446,70947.0,70920.0,0.07050197]
[1773249342756,0.00144,70945.0,70931.0,0.04837721]
[1773249342970,0.00144,70947.0,70933.0,0.04837721]
[1773249343174,0.00144,70953.0,70933.0,0.04837721]
[1773249343544,0.05108446,70953.0,70933.0,0.04837721]
[1773249343952,0.00104719,70951.0,70933.0,0.04837721]
[1773249344535,0.00104719,70951.0,70934.0,0.07048805]
[1773249344735,0.00104719,70951.0,70935.0,0.04837721]
[1773249344932,0.00022001,70939.0,70935.0,0.04837721]
[1773249345136,0.00104719,70951.0,70935.0,0.04837721]
[1773249346722,0.00104719,70951.0,70936.0,0.11886328]
[1773249347423,0.04964446,70950.0,70936.0,0.11886328]
[1773249347885,0.04964446,70950.0,70936.0,0.11986328]
[1773249348901,0.00104719,70951.0,70937.0,0.04837721]
[1773249349123,0.26859219,70956.0,70940.0,0.12536188]
[1773249349439,0.00144,70970.0,70941.0,0.04981721]
[1773249349733,0.00144,70970.0,70951.0,0.04837721]
[1773249349939,1e-08,70963.0,70953.0,0.05203036]
[1773249350166,0.04755811,70988.0,70953.0,0.05203036]
[1773249350355,0.00022001,71010.0,70961.0,0.05203036]
[1773249350356,0.04755811,70984.0,70961.0,0.05203036]
[1773249350553,0.04755811,70983.0,70962.0,0.00144]
[1773249350715,0.04755811,70969.0,70955.0,0.00144]
[1773249350914,0.04755811,70968.0,70955.0,0.00144]
[1773249352100,0.00022001,70965.0,70955.0,0.00144]
[1773249352298,0.00144,70968.0,70955.0,0.00144]
[1773249352479,0.04899811,70968.0,70955.0,0.00144]
[1773249353067,0.04899811,70968.0,70956.0,0.0704662]
[1773249353870,0.00144,70968.0,70956.0,0.0704662]
[1773249354071,0.05879811,70985.0,70958.0,0.12536188]
[1773249354343,0.00144,70986.0,70971.0,0.05203036]
[1773249354498,0.00144,70985.0,70971.0,0.05203036]
[1773249354882,0.00144,70986.0,70971.0,0.05203036]
[1773249355275,0.00144,70986.0,70972.0,0.07045031]
[1773249355478,0.00155161,70986.0,70972.0,0.07045031]
[1773249355880,0.001,70985.0,70972.0,0.07045031]
[1773249356115,0.001,70985.0,70972.0,0.12248067]
[1773249356277,0.00155161,70986.0,70972.0,0.12248067]
[1773249357187,0.00155161,70986.0,70974.0,0.07044833]
[1773249357639,0.00014089,70978.0,70974.0,0.07044833]
[1773249357864,0.00014089,70978.0,70975.0,0.05203036]
[1773249358067,0.00014089,70978.0,70973.0,0.07044833]
[1773249358199,0.00014089,70978.0,70971.0,0.07044932]
[1773249358601,0.00014089,70978.0,70973.0,0.07044833]
[1773249359646,0.20216066,70977.0,70963.0,0.00144]
[1773249360146,0.20216066,70977.0,70964.0,0.05203036]
[1773249360702,0.00014089,70978.0,70964.0,0.05203036]
[1773249360947,0.00114089,70978.0,70963.0,0.00144]
[1773249361155,0.04755811,70976.0,70963.0,0.00144]
[1773249361532,0.20216066,70977.0,70963.0,0.00144]
[1773249361533,0.20216066,70977.0,70964.0,0.12248862]
[1773249361713,0.00114089,70978.0,70965.0,0.05203036]
[1773249362302,0.04755811,70975.0,70940.0,0.12536188]
[1773249362507,0.04755811,70975.0,70941.0,0.00144]
[1773249362755,0.04755811,70975.0,70943.0,0.05203036]
[1773249363111,0.04755811,70973.0,70943.0,0.05203036]
[1773249364068,0.04755811,70971.0,70945.0,0.05203036]
[1773249364672,0.04800181,70971.0,70945.0,0.05203036]
[1773249364875,0.0004437,70971.0,70951.0,0.05203036]
[1773249365075,0.0004437,70971.0,70953.0,0.05203036]
[1773249366063,0.0004437,70971.0,70954.0,0.07046819]
[1773249366367,0.0004437,70971.0,70955.0,0.05203036]
[1773249367578,0.0004437,70971.0,70955.0,0.05303036]
[1773249367992,0.0004437,70971.0,70956.0,0.0704662]
[1773249368337,0.0004437,70971.0,70957.0,0.05203036]
[1773249368483,0.0004437,70971.0,70959.0,0.05203036]
[1773249368690,0.00144,70977.0,70959.0,0.05203036]
[1773249369186,0.04899811,70977.0,70959.0,0.05203036]
[1773249369404,0.00144,70977.0,70959.0,0.05203036]
[1773249369809,0.04899811,70977.0,70959.0,0.05203036]
[1773249370035,0.00022001,70975.0,70960.0,0.07046223]
[1773249370478,0.00022001,70975.0,70961.0,0.05203036]
[1773249370768,0.00022001,70975.0,70962.0,0.00144]
[1773249371329,0.00022001,70975.0,70962.0,0.05347036]
[1773249372194,0.00022001,70975.0,70963.0,0.07045925]
[1773249372406,0.00022001,70983.0,70964.0,0.05203036]
[1773249372548,0.0005511,70998.0,70971.0,0.05203036]
[1773249372549,0.04645008,70998.0,70971.0,0.05203036]
[1773249372748,0.00144,70997.0,70973.0,0.05203036]
[1773249372961,0.00144,70996.0,70973.0,0.05203036]
[1773249373160,0.04645008,70998.0,70973.0,0.05203036]
[1773249373362,0.00144,70995.0,70973.0,0.05203036]
[1773249374189,0.00144,70995.0,70975.0,0.05203036]
[1773249374803,0.07186764,70995.0,70975.0,0.05203036]
[1773249375027,0.00144,70995.0,70975.0,0.05203036]
[1773249375762,0.00144,70996.0,70975.0,0.05203036]
[1773249376173,0.00144,70997.0,70978.0,0.07044436]
[1773249376419,0.00144,70997.0,70981.0,0.05203036]
[1773249376629,0.00022001,71001.0,70981.0,0.05203036]
[1773249376838,0.00022001,71001.0,70982.0,0.05203036]
[1773249377010,0.00022001,71001.0,70983.0,0.00144]
[1773249377011,0.04755811,71000.0,70983.0,0.00144]
[1773249377213,0.00022001,71001.0,70983.0,0.00144]
[1773249377415,0.00022001,71010.0,70983.0,0.00144]
[1773249377416,0.04729812,71008.0,70984.0,0.05203036]
[1773249377620,0.07063342,71010.0,70985.0,0.05203036]
[1773249377837,0.07063342,71010.0,70986.0,0.00144]
[1773249377838,0.04755811,71008.0,70986.0,0.00144]
[1773249378175,0.04755811,71008.0,70985.0,0.00144]
[1773249378449,0.04755811,71006.0,70986.0,0.07043642]
[1773249378648,0.00022001,70995.0,70986.0,0.07043642]
[1773249379089,0.04755811,70994.0,70968.0,0.00144]
[1773249379245,0.04755811,70994.0,70971.0,0.07056287]
[1773249380221,0.07043146,70991.0,70970.0,0.00144]
[1773249380424,0.04552421,70989.0,70971.0,0.07045126]
[1773249382064,0.07057232,70993.0,70971.0,0.07189126]
[1773249382065,0.00014086,70993.0,70971.0,0.07189126]
[1773249382246,0.04552421,71004.0,70981.0,0.04629362]
[1773249382448,0.04552421,71002.0,70982.0,0.07188039]
[1773249382593,0.04696421,71002.0,70978.0,0.07044389]
[1773249382799,0.04552421,70988.0,70976.0,0.00144]
[1773249383204,0.04552421,70988.0,70972.0,0.07044995]
[1773249383426,0.04552421,70988.0,70966.0,0.11036426]
[1773249383427,0.04552421,70988.0,70962.0,0.07045994]
[1773249383603,0.04563574,70988.0,70962.0,0.07045994]
[1773249384027,0.04552421,70986.0,70962.0,0.07045994]
[1773249384398,0.04552421,70984.0,70959.0,0.11675386]
[1773249384600,0.04552421,70984.0,70959.0,0.04629362]
[1773249385422,0.00144,70983.0,70961.0,0.04629362]
[1773249385648,0.00144,70983.0,70962.0,0.00144]
[1773249385929,0.04696421,70983.0,70962.0,0.00144]
[1773249386326,0.07044039,70982.0,70963.0,0.07045925]
[1773249386475,0.00022001,70997.0,70970.0,0.12536188]
[1773249386691,0.00022001,71004.0,70981.0,0.13923806]
[1773249386905,0.00166001,71004.0,70982.0,0.04773362]
[1773249387268,0.00022001,71004.0,70982.0,0.04773362]
[1773249387445,0.00144,71002.0,70982.0,0.04773362]
[1773249388305,0.00144,71002.0,70984.0,0.04629362]
[1773249388542,0.00022001,71004.0,70984.0,0.04629362]
[1773249388840,0.00144,71002.0,70984.0,0.04629362]
[1773249389370,0.00022001,71004.0,70984.0,0.04629362]
[1773249389573,0.00022001,71004.0,70983.0,0.0704394]
[1773249389574,0.00144,71002.0,70986.0,0.04629362]
[1773249389778,0.00022001,71004.0,70986.0,0.04629362]
[1773249390191,1e-08,71003.0,70986.0,0.04629362]
[1773249390396,1e-08,71003.0,70988.0,0.04629362]
[1773249391673,1e-08,71003.0,70988.0,0.04729362]
[1773249392073,1e-08,71003.0,70988.0,0.04629362]
[1773249392606,1e-08,71003.0,70989.0,0.11672706]
[1773249392771,1e-08,71003.0,70990.0,0.04629362]
[1773249392970,1e-08,71003.0,70991.0,0.04773362]
[1773249394512,1e-08,71003.0,70993.0,0.04629362]
[1773249395486,0.04552421,71000.0,70982.0,0.07043985]
[1773249395692,0.04552421,70998.0,70984.0,0.07063754]
[1773249395890,1e-08,71003.0,70985.0,0.04629362]
[1773249396282,0.00144001,71003.0,70985.0,0.04629362]
[1773249396503,0.00144001,71003.0,70987.0,0.04629362]
[1773249397497,0.00144001,71003.0,70993.0,0.001]
[1773249397701,0.00144001,71003.0,70986.0,0.07043642]
[1773249397984,0.04552421,71002.0,70986.0,0.07043642]
[1773249398765,0.00144,71001.0,70987.0,0.04629362]
[1773249399337,0.04552421,71000.0,70984.0,0.07063824]
[1773249400125,0.00144,71001.0,70984.0,0.11693186]
[1773249400688,0.07042253,71000.0,70984.0,0.11693186]
[1773249400855,0.04886159,70999.0,70976.0,0.07064628]
[1773249401055,0.04886159,70999.0,70976.0,0.07075781]
[1773249401912,0.04886159,70999.0,70972.0,0.07189014]
[1773249402121,0.00011155,70999.0,70973.0,0.04554999]
[1773249402345,0.04753314,70999.0,70973.0,0.04554999]
[1773249402494,0.04886159,70998.0,70973.0,0.04554999]
[1773249402702,0.04742159,70997.0,70975.0,0.04554999]
[1773249403437,0.00111155,70999.0,70980.0,0.12499806]
[1773249403640,0.00111155,70999.0,70976.0,0.00144]
[1773249403641,0.00011155,70999.0,70983.0,0.04554999]
[1773249404407,0.00011155,70999.0,70984.0,0.04698999]
[1773249404763,0.00011155,70999.0,70986.0,0.04554999]
[1773249406761,0.00011155,70999.0,70988.0,0.08225971]
[1773249408064,0.00011155,70999.0,70988.0,0.08325971]
[1773249408469,0.00011155,70999.0,70988.0,0.08225971]
[1773249408998,0.00011155,70999.0,70990.0,0.08202086]
[1773249409166,0.00011155,70999.0,70991.0,0.00144]
[1773249409696,0.00144,71025.0,70992.0,0.08202086]
[1773249409899,0.0005919,71023.0,70994.0,0.08202086]
[1773249410257,0.07040072,71022.0,70994.0,0.08202086]
[1773249410462,0.07040072,71022.0,70995.0,0.08346086]
[1773249411047,0.07040072,71022.0,70997.0,0.0817846]
[1773249411421,0.07040072,71022.0,70988.0,0.0002]
[1773249411422,0.20215539,71002.0,70988.0,0.0002]
[1773249411703,0.001,70999.0,70988.0,0.07063403]
[1773249412153,0.20215539,71002.0,70988.0,0.07063403]
[1773249412339,0.20215539,71002.0,70988.0,0.07163403]
[1773249412746,0.20215539,71002.0,70988.0,0.07063403]
[1773249412943,0.20215539,71002.0,70988.0,0.07074558]
[1773249414321,0.27257648,71002.0,70988.0,0.07074558]
[1773249414742,0.27357648,71002.0,70988.0,0.07074558]
[1773249415196,0.20315539,71002.0,70988.0,0.07074558]
[1773249415392,0.20459539,71002.0,70989.0,0.08173817]
[1773249415601,0.00244,71002.0,70989.0,0.08173817]
[1773249415821,0.001,71002.0,70989.0,0.08173817]
[1773249415963,0.001,71002.0,70989.0,0.08317817]
[1773249416165,0.001,71002.0,70989.0,0.08173817]
[1773249416367,0.001,71002.0,70990.0,0.07043245]
[1773249416703,0.001,71002.0,70991.0,0.08173817]
[1773249417333,0.001,71002.0,70990.0,0.07043245]
[1773249418215,0.07042087,71002.0,70988.0,0.07074521]
[1773249418414,0.07042087,71002.0,70988.0,0.00031155]
[1773249418733,0.07142087,71002.0,70988.0,0.07074596]
[1773249418976,0.07142087,71002.0,70982.0,0.0704398]
[1773249419121,0.0705324,71002.0,70982.0,0.0704398]
[1773249419355,0.0715324,71002.0,70982.0,0.0704398]
[1773249419942,0.0705324,71002.0,70982.0,0.0704398]
[1773249420263,0.0715324,71002.0,70982.0,0.0704398]
[1773249420660,0.0715324,71002.0,70981.0,0.07064041]
[1773249420993,0.0715324,71002.0,70974.0,0.0002]
[1773249421131,0.0715324,71002.0,70972.0,0.07045026]
[1773249421559,0.00144,71001.0,70972.0,0.07044944]
[1773249422248,0.0725324,71002.0,70972.0,0.07044944]
[1773249422471,0.0705324,71002.0,70973.0,0.08348122]
[1773249422644,0.00144,71001.0,70973.0,0.08348122]
[1773249422847,0.07042253,71000.0,70974.0,0.07044833]
[1773249422999,0.00144,70999.0,70974.0,0.07044833]
[1773249423406,0.00144,70999.0,70974.0,0.15392955]
[1773249423753,0.00011153,71002.0,70975.0,0.08348122]
[1773249424338,0.00011153,71002.0,70975.0,0.16554639]
[1773249424543,0.00011153,71002.0,70977.0,0.08348122]
[1773249424867,0.00155153,71002.0,70983.0,0.08576701]
[1773249425062,0.00011153,71002.0,70985.0,0.08576701]
[1773249426926,0.00011153,71002.0,70986.0,0.15620343]
[1773249427286,0.00022001,70999.0,70986.0,0.15620343]
[1773249427489,0.00022001,70999.0,70987.0,0.08576701]
[1773249428777,0.00011153,71002.0,70988.0,0.07043443]
[1773249429079,0.00022001,71007.0,70989.0,0.08576701]
[1773249429385,0.00144,71010.0,70989.0,0.08587854]
[1773249429703,0.00144,71011.0,70989.0,0.08587854]
[1773249429905,0.07102537,71014.0,70991.0,0.08576701]
[1773249430083,0.00061661,71014.0,70991.0,0.08576701]
[1773249430279,0.07102582,71014.0,70991.0,0.08576701]
[1773249430815,0.00166001,71018.0,70993.0,0.08576701]
[1773249430816,0.00022001,71018.0,70993.0,0.08576701]
[1773249431159,0.00022001,71018.0,70996.0,0.08576701]
[1773249431448,0.00022001,71018.0,70998.0,0.08576701]
[1773249432859,0.00022001,71018.0,70999.0,0.07042352]
[1773249433063,0.00022001,71018.0,70999.0,0.15619053]
[1773249433280,0.00022001,71018.0,70999.0,0.07042352]
[1773249433679,0.07040567,71017.0,70999.0,0.07042352]
[1773249433833,0.00022001,71018.0,71000.0,0.00144]
[1773249434305,0.00022001,71018.0,71001.0,0.08576701]
[1773249434428,0.00022001,71018.0,71001.0,0.08720701]
[1773249434634,0.00022001,71018.0,70998.0,0.07042352]
[1773249434635,0.0706249,71018.0,70998.0,0.07042352]
[1773249435037,0.0706249,71018.0,70997.0,0.15619152]
[1773249435240,0.00022001,71018.0,70997.0,0.07042451]
[1773249435539,1e-08,71018.0,70998.0,0.08576701]
[1773249436067,0.0001408,71021.0,70998.0,0.08576701]
[1773249436611,0.001,71018.0,70998.0,0.08576701]
[1773249437020,0.0001408,71021.0,71000.0,0.08576701]
[1773249437147,0.0001408,71021.0,71002.0,0.08576701]
[1773249437345,0.00022001,71014.0,71005.0,0.06]
[1773249437566,0.00022001,71014.0,71006.0,0.08576701]
[1773249437767,0.00022001,71014.0,71007.0,0.00144]
[1773249437995,0.0001408,71021.0,71007.0,0.00144]
[1773249438529,0.0001408,71021.0,71008.0,0.08576701]
[1773249439210,0.0001408,71021.0,71009.0,0.0704136]
[1773249440107,0.0011408,71021.0,71009.0,0.0704136]
[1773249440266,0.0011408,71021.0,71007.0,0.02941654]
[1773249440475,0.0001408,71021.0,71009.0,0.0704136]
[1773249440892,0.0011408,71021.0,71009.0,0.0704136]
[1773249441058,0.0011408,71021.0,71007.0,0.02941654]
[1773249441059,0.0704027,71020.0,71007.0,0.02941654]
[1773249441264,0.0011408,71021.0,71007.0,0.11518355]
[1773249441503,1e-08,71021.0,71007.0,0.11518355]
[1773249441705,0.07040201,71021.0,71002.0,0.00144]
[1773249441958,0.07040201,71021.0,71002.0,0.07186018]
[1773249442144,0.07040201,71021.0,71003.0,0.08576701]
[1773249442145,1e-08,71021.0,71003.0,0.08576701]
[1773249442642,0.00144,71020.0,71003.0,0.08576701]
[1773249442847,0.00144,71020.0,71002.0,0.07186018]
[1773249443051,0.07040369,71019.0,71002.0,0.07186018]
[1773249443660,0.00022001,71022.0,71002.0,0.07186018]
[1773249443864,0.001,71020.0,71002.0,0.15762719]
[1773249444238,0.07184171,71021.0,70991.0,0.08576701]
[1773249444444,0.07198251,71021.0,70992.0,0.00144]
[1773249444738,0.001,71019.0,70990.0,0.07043245]
[1773249444942,0.001,71019.0,70993.0,0.00144]
[1773249445305,0.07040468,71018.0,70980.0,0.00144]
[1773249445432,0.07051625,71018.0,70980.0,0.00144]
[1773249445839,0.12499806,71010.0,70972.0,0.0706499]
[1773249446044,0.03234816,71017.0,70973.0,0.08576701]
[1773249446264,0.17044,71016.0,70973.0,0.08576701]
[1773249447094,0.07040766,71015.0,70974.0,0.07044833]
[1773249448383,0.07040766,71015.0,70974.0,0.15621534]
[1773249449176,0.07040766,71015.0,70975.0,0.08576701]
[1773249449375,0.07140766,71015.0,70975.0,0.08576701]
[1773249449806,0.07040766,71015.0,70975.0,0.08576701]
[1773249449990,0.00144,71014.0,70975.0,0.08576701]
[1773249450195,0.00144,71014.0,70974.0,0.07044833]
[1773249450744,0.00144,71014.0,70974.0,0.15621534]
[1773249451171,0.00144,71014.0,70974.0,0.07044833]
[1773249451355,0.07040964,71013.0,70976.0,0.07044634]
[1773249451565,0.07040964,71013.0,70973.0,0.07044896]
[1773249452553,2.17789,71012.0,70972.0,0.0002]
[1773249452798,0.12508581,71000.0,70955.0,0.0704667]
[1773249452923,0.12508581,71000.0,70962.0,0.07046015]
[1773249452924,0.437101,70998.0,70962.0,0.07046015]
[1773249453126,0.437101,70998.0,70960.0,0.07046209]
[1773249453339,0.07042551,70997.0,70961.0,0.07046095]
[1773249453539,0.07042551,70997.0,70959.0,0.07046228]
[1773249453792,0.07042551,70997.0,70957.0,0.0002]
[1773249453937,0.20282816,70996.0,70954.0,0.07046788]
[1773249454339,0.03234816,70996.0,70954.0,0.07046788]
[1773249454648,0.00144,70995.0,70965.0,0.08576701]
[1773249454856,0.07142551,70997.0,70965.0,0.08576701]
[1773249455055,0.00144,70996.0,70965.0,0.08576701]
[1773249455253,0.07153702,70997.0,70970.0,0.12508581]
[1773249455462,0.00144,70996.0,70971.0,0.08716701]
[1773249455658,0.00144,71010.0,70982.0,0.08576701]
[1773249455900,0.00144,71009.0,70982.0,0.00011151]
[1773249456095,0.00144,71008.0,70982.0,0.00011151]
[1773249456270,0.00144,71007.0,70982.0,0.00011151]
[1773249456490,0.00144,71006.0,70982.0,0.00011151]
[1773249456694,0.00144,71005.0,70982.0,0.00011151]
[1773249456892,0.00144,71004.0,70982.0,0.00011151]
[1773249457132,0.00144,71003.0,70966.0,0.07045627]
[1773249457492,0.00144,71003.0,70966.0,0.15622328]
[1773249457493,0.001,70996.0,70966.0,0.15622328]
[1773249457628,0.001,70996.0,70966.0,0.07185627]
[1773249457832,0.001,70996.0,70967.0,0.08576701]
[1773249458469,0.001,70996.0,70967.0,0.08716701]
[1773249458823,0.07042154,71001.0,70967.0,0.08716701]
[1773249459400,0.07042154,71001.0,70969.0,0.08576701]
[1773249459765,0.0014,71000.0,70969.0,0.08576701]
[1773249460507,0.12648581,71000.0,70965.0,0.08576701]
[1773249460841,0.0014,71000.0,70965.0,0.08716701]
[1773249461041,0.07042154,71002.0,70971.0,0.08576701]
[1773249461166,0.0014,70999.0,70971.0,0.08576701]
[1773249461367,0.07182529,70998.0,70974.0,0.07044833]
[1773249461580,0.07182529,70998.0,70975.0,0.08576701]
[1773249461792,0.07042529,70998.0,70975.0,0.08576701]
[1773249461998,0.0014,70997.0,70975.0,0.08576701]
[1773249463416,0.0704265,70996.0,70976.0,0.07044634]
[1773249463774,0.0704265,70996.0,70977.0,0.08576701]
[1773249464179,0.0014,70997.0,70977.0,0.08576701]
[1773249464406,0.07182565,70997.0,70977.0,0.08576701]
[1773249464610,0.07182565,70997.0,70978.0,0.0014]
[1773249464821,0.07075113,71003.0,70979.0,0.08576701]
[1773249465132,0.0014,71002.0,70979.0,0.08576701]
[1773249465515,0.00033156,71003.0,70983.0,0.08576701]
[1773249465714,0.00022001,71011.0,70991.0,0.08576701]
[1773249465958,0.00022001,71011.0,70993.0,0.08576701]
[1773249466344,0.00022001,71011.0,70992.0,0.0014]
[1773249466345,0.00022001,71011.0,70999.0,0.08576701]
[1773249466547,1e-08,71021.0,71001.0,0.08576701]
[1773249466872,0.07039982,71023.0,71001.0,0.08576701]
[1773249467075,0.07039982,71023.0,70998.0,0.001]
[1773249467076,0.00136001,71023.0,71002.0,0.0014]
[1773249467278,0.00136001,71023.0,71003.0,0.08576701]
[1773249467434,1e-08,71023.0,71005.0,0.08576701]
[1773249468040,1e-08,71023.0,71007.0,0.08576701]
[1773249468285,1e-08,71023.0,71007.0,0.08561828]
[1773249468983,1e-08,71023.0,71009.0,0.08569264]
[1773249469536,1e-08,71023.0,71011.0,0.08569264]
[1773249469730,1e-08,71023.0,71008.0,0.0718144]
[1773249469938,0.00136001,71023.0,71006.0,0.00144]
[1773249470206,0.00136001,71023.0,71006.0,0.08713264]
[1773249470363,0.00136001,71023.0,70998.0,0.0434851]
[1773249470567,0.00136001,71023.0,71009.0,0.001]
[1773249471173,0.00136001,71023.0,71008.0,0.00144]
[1773249471438,0.0062797,71021.0,71005.0,0.00144]
[1773249471638,0.0062797,71021.0,71002.0,0.0704204]
[1773249472093,0.0062797,71021.0,71000.0,0.07186226]
[1773249472302,0.0062797,71021.0,70998.0,0.00144]
[1773249472634,0.0014,71020.0,70999.0,0.0434851]
[1773249472839,0.00748812,71020.0,70999.0,0.0434851]
[1773249473034,0.00748812,71020.0,70998.0,0.00144]
[1773249473197,0.00748812,71020.0,70999.0,0.0434851]
[1773249473623,0.07040369,71019.0,71000.0,0.07042253]
[1773249473939,0.0014,71018.0,71001.0,0.0434851]
[1773249474101,1e-08,71023.0,71001.0,0.0434851]
[1773249474102,0.0014,71017.0,71001.0,0.0434851]
[1773249474618,0.0014,71016.0,71001.0,0.0434851]
[1773249475335,0.00014081,71015.0,71000.0,0.07042253]
[1773249475695,0.09123456,71015.0,70998.0,0.07186253]
[1773249475892,0.00014081,71015.0,70998.0,0.07186253]
[1773249477818,0.00014081,71015.0,70999.0,0.07042333]
[1773249478059,0.00014081,71015.0,70991.0,0.00011155]
[1773249478256,0.02052603,71014.0,70991.0,0.07054202]
[1773249479642,0.07040964,71013.0,70991.0,0.00011155]
[1773249479846,0.02168916,71012.0,70991.0,0.00011155]
[1773249480047,0.02168916,71010.0,70991.0,0.00011155]
[1773249480882,0.04748401,71009.0,70991.0,0.00011155]
[1773249481088,0.02160441,71008.0,70991.0,0.00011155]
[1773249481700,0.07041559,71007.0,70984.0,0.0704384]
[1773249481878,0.02151929,71006.0,70984.0,0.0704384]
[1773249482051,0.02151929,71006.0,70984.0,0.1139235]
[1773249482252,0.02151929,71006.0,70984.0,0.0434851]
[1773249482986,0.00011155,71007.0,70990.0,0.12508581]
[1773249483186,0.00011155,71007.0,70991.0,0.0449251]
[1773249483390,0.0213487,71004.0,70984.0,0.00144]
[1773249483789,0.07041955,71003.0,70984.0,0.00144]
[1773249483990,0.0213487,71002.0,70984.0,0.00144]
[1773249484598,0.0213487,71002.0,70984.0,0.07043821]
[1773249485196,0.0213487,71002.0,70979.0,0.00014089]